fUSD/lending_fUSD_20260115
["ID","MTS","AMOUNT","RATE_DAILY","PERIOD"]
[402039224,1768488709330,-500.0,0.00041917,30]
[402039225,1768488709340,-3323.94,0.00041917,30]
[402039226,1768488709350,-666.99,0.00041917,30]
[402039227,1768488709359,-561.64,0.00041917,30]
[402039228,1768488709369,-500.0,0.00041917,30]
[402039229,1768488709380,-1018.11,0.00041917,30]
[402039230,1768488709390,-500.0,0.00041917,30]
[402039231,1768488709399,-1085.76,0.00041917,30]
[402039232,1768488709408,-1834.0,0.00041918,120]
[402039233,1768488709418,-592.0,0.00041918,2]
[402039234,1768488709427,-834.0,0.00041942,16]
[402039235,1768488709436,-162.0,0.00041942,16]
[402039236,1768488709445,-1834.0,0.00041973,120]
[402039237,1768488709455,-592.0,0.00041973,2]
[402039238,1768488709464,-322.73534399,0.0004198,120]
[402039239,1768488709473,-2813.05888266,0.00041988,2]
[402039240,1768488709482,-50000.0,0.00042,42]
[402039241,1768488709491,-50000.0,0.00042,32]
[402039242,1768488709500,-150.0,0.00042,120]
[402039243,1768488709509,-150.0,0.00042,120]
[402039244,1768488709520,-150.0,0.00042,120]
[402039245,1768488709531,-150.0,0.00042,120]
[402039246,1768488709542,-500.0,0.00042,30]
[402039247,1768488709551,-54129.79521163,0.00042,60]
[402039248,1768488709560,-481.15838432,0.00042,2]
[402039249,1768488709569,-151.0,0.00042,120]
[402039250,1768488709579,-3000.0,0.00042,120]
[402039251,1768488709588,-391.04873203,0.00042,120]
[402039252,1768488709597,-200.0,0.00042,120]
[402039253,1768488709607,-230.0,0.00042,30]
[402039254,1768488709617,-300.0,0.00042,5]
[402039255,1768488709629,-1000.0,0.00042,120]
[402039256,1768488709638,-847.023841,0.00042,120]
[402039257,1768488709648,-200.0,0.00042,120]
[402039258,1768488709658,-1000.0,0.00042,120]
[402039259,1768488709670,-4591.82270419,0.00042,120]
[402039260,1768488709679,-600.0,0.00042,120]
[402039261,1768488709690,-427.89,0.00042,120]
[402039262,1768488709701,-150.0,0.00042,120]
[402039263,1768488709711,-150.0,0.00042,120]
[402039264,1768488709720,-150.0,0.00042,120]
[402039265,1768488709729,-150.0,0.00042,120]
[402039266,1768488709738,-150.0,0.00042,120]
[402039267,1768488709747,-4000.0,0.00042,120]
[402039268,1768488709756,-1834.0,0.00042027,120]
[402039269,1768488709765,-592.0,0.00042028,2]
[402039270,1768488709775,-18385.0,0.00042052,30]
[402039271,1768488709788,-1834.0,0.00042082,120]
[402039272,1768488709798,-311.1,0.00042082,60]
[402039273,1768488709807,-592.0,0.00042082,2]
[402039274,1768488709816,-150.0,0.000421,120]
[402039275,1768488709826,-150.0,0.000421,120]
[402039276,1768488709836,-156.87,0.000421,2]
[402039277,1768488709847,-1834.0,0.00042137,120]
[402039278,1768488709856,-592.0,0.00042137,2]
[402039279,1768488709866,-1300.0,0.00042191,60]
[402039280,1768488709877,-2200.0,0.00042191,60]
[402039281,1768488709886,-208.739998,0.00042191,30]
[402039282,1768488709895,-247.184164,0.00042191,30]
[402039283,1768488709905,-150.978527,0.00042191,30]
[402039284,1768488709915,-506.59914076,0.00042191,30]
[402039285,1768488709926,-558.45464588,0.00042191,30]
[402039286,1768488709936,-894.22,0.00042191,30]
[402039287,1768488709945,-500.0,0.00042191,30]
[402039288,1768488709955,-500.0,0.00042191,30]
[402039289,1768488709964,-749.93,0.00042191,30]
[402039290,1768488709973,-500.0,0.00042191,30]
[402039291,1768488709982,-500.0,0.00042191,30]
[402039292,1768488709991,-500.0,0.00042191,30]
[402039293,1768488710000,-970.08,0.00042191,30]
[402039294,1768488710010,-500.0,0.00042191,30]
[402039295,1768488710019,-1373.88,0.00042191,30]
[402039296,1768488710028,-500.0,0.00042191,30]
[402039297,1768488710037,-500.0,0.00042191,30]
[402039298,1768488710047,-500.0,0.00042191,30]
[402039299,1768488710055,-1671.33,0.00042191,30]
[402039300,1768488710066,-500.0,0.00042191,30]
[402039301,1768488710075,-643.11,0.00042191,30]
[402039302,1768488710085,-1325.74,0.00042191,30]
[402039303,1768488710095,-500.0,0.00042191,30]
[402039304,1768488710106,-539.86,0.00042191,30]
[402039305,1768488710115,-500.0,0.00042191,30]
[402039306,1768488710126,-533.46,0.00042191,30]
[402039307,1768488710136,-1463.85,0.00042191,30]
[402039308,1768488710146,-825.4,0.00042191,30]
[402039309,1768488710155,-565.54252019,0.00042191,30]
[402039310,1768488710164,-500.0,0.00042191,30]
[402039311,1768488710173,-500.0,0.00042191,30]
[402039312,1768488710183,-500.0,0.00042191,30]
[402039313,1768488710193,-500.0,0.00042191,30]
[402039314,1768488710201,-500.0,0.00042191,30]
[402039315,1768488710211,-612.33943276,0.00042191,30]
[402039316,1768488710220,-867.71,0.00042191,30]
[402039317,1768488710230,-622.2,0.00042191,30]
[402039318,1768488710239,-522.0553573,0.00042191,30]
[402039319,1768488710249,-497.56492888,0.00042191,30]
[402039320,1768488710258,-1123.08,0.00042191,30]
[402039321,1768488710268,-500.0,0.00042191,30]
[402039322,1768488710278,-500.0,0.00042191,30]
[402039323,1768488710287,-500.0,0.00042191,30]
[402039324,1768488710296,-1447.59,0.00042191,30]
[402039325,1768488710305,-500.0,0.00042191,30]
[402039326,1768488710315,-500.0,0.00042191,30]
[402039327,1768488710323,-500.0,0.00042191,30]
[402039328,1768488710333,-500.0,0.00042191,30]
[402039329,1768488710342,-750.12,0.00042191,30]
[402039330,1768488710351,-500.0,0.00042191,30]
[402039331,1768488710360,-500.0,0.00042191,30]
[402039332,1768488710369,-500.0,0.00042191,30]
[402039333,1768488710381,-500.0,0.00042191,30]
[402039334,1768488710390,-500.0,0.00042191,30]
[402039335,1768488710399,-1382.8,0.00042191,30]
[402039336,1768488710407,-438.41723141,0.00042191,30]
[402039337,1768488710417,-885.85,0.00042191,30]
[402039338,1768488710426,-246.02,0.00042191,30]
[402039339,1768488710435,-500.0,0.00042191,30]
[402039340,1768488710444,-1451.28,0.00042191,30]
[402039341,1768488710454,-500.0,0.00042191,30]
[402039342,1768488710463,-500.0,0.00042191,30]
[402039343,1768488710473,-526.26,0.00042191,30]
[402039344,1768488710482,-500.0,0.00042191,30]
[402039345,1768488710491,-500.0,0.00042191,30]
[402039346,1768488710500,-533.10638268,0.00042191,30]
[402039347,1768488710509,-380.1383756,0.00042191,30]
[402039348,1768488710519,-534.84,0.00042191,30]
[402039349,1768488710528,-529.94,0.00042191,30]
[402039350,1768488710537,-1566.62,0.00042191,30]
[402039351,1768488710545,-500.0,0.00042191,30]
[402039352,1768488710554,-500.0,0.00042191,30]
[402039353,1768488710564,-939.47,0.00042191,30]
[402039354,1768488710572,-505.41847037,0.00042191,30]
[402039355,1768488710583,-706.27,0.00042191,30]
[402039356,1768488710592,-539.6,0.00042191,30]
[402039357,1768488710601,-348.77941184,0.00042191,30]
[402039358,1768488710610,-692.96,0.00042191,30]
[402039359,1768488710619,-500.0,0.00042191,30]
[402039360,1768488710630,-500.0,0.00042191,30]
[402039361,1768488710639,-500.0,0.00042191,30]
[402039362,1768488710648,-500.0,0.00042191,30]
[402039363,1768488710657,-1555.79,0.00042191,30]
[402039364,1768488710668,-1013.61,0.00042191,30]
[402039365,1768488710677,-500.0,0.00042191,30]
[402039366,1768488710686,-761.83,0.00042191,30]
[402039367,1768488710696,-500.0,0.00042191,30]
[402039368,1768488710706,-500.0,0.00042191,30]
[402039369,1768488710715,-1108.22,0.00042191,30]
[402039370,1768488710724,-519.80962277,0.00042191,30]
[402039371,1768488710733,-500.0,0.00042191,30]
[402039372,1768488710742,-507.14722979,0.00042191,30]
[402039373,1768488710751,-501.57307335,0.00042191,30]
[402039374,1768488710760,-500.0,0.00042191,30]
[402039375,1768488710769,-500.0,0.00042191,30]
[402039376,1768488710778,-500.0,0.00042191,120]
[402039377,1768488710788,-500.0,0.00042191,30]
[402039378,1768488710797,-998.52,0.00042191,30]
[402039379,1768488710807,-500.0,0.00042191,30]
[402039380,1768488710816,-641.91,0.00042191,30]
[402039381,1768488710825,-500.0,0.00042191,30]
[402039382,1768488710835,-643.38,0.00042191,30]
[402039383,1768488710844,-500.0,0.00042191,30]
[402039384,1768488710853,-500.0,0.00042191,30]
[402039385,1768488710863,-1011.79,0.00042191,30]
[402039386,1768488710872,-1172.0,0.00042191,30]
[402039387,1768488710883,-500.0,0.00042191,30]
[402039388,1768488710892,-577.5,0.00042191,30]
[402039389,1768488710902,-502.96270713,0.00042191,30]
[402039390,1768488710911,-500.0,0.00042191,30]
[402039391,1768488710919,-500.0,0.00042191,30]
[402039392,1768488710928,-532.56145926,0.00042191,30]
[402039393,1768488710938,-500.0,0.00042191,30]
[402039394,1768488710948,-835.55,0.00042191,30]
[402039395,1768488710957,-500.0,0.00042191,30]
[402039396,1768488710966,-500.0,0.00042191,30]
[402039397,1768488710976,-500.0,0.00042191,30]
[402039398,1768488710986,-500.0,0.00042191,30]
[402039399,1768488710995,-500.0,0.00042191,30]
[402039400,1768488711006,-500.0,0.00042191,30]
[402039401,1768488711016,-623.6134821,0.00042191,30]
[402039402,1768488711026,-875.25,0.00042191,30]
[402039403,1768488711035,-500.0,0.00042191,30]
[402039404,1768488711044,-671.97,0.00042191,30]
[402039405,1768488711055,-804.29,0.00042191,30]
[402039406,1768488711066,-500.0,0.00042191,30]
[402039407,1768488711075,-500.0,0.00042191,30]
[402039408,1768488711084,-500.0,0.00042191,30]
[402039409,1768488711093,-500.0,0.00042191,30]
[402039410,1768488711104,-521.56,0.00042191,30]
[402039411,1768488711113,-500.0,0.00042191,30]
[402039412,1768488711122,-525.18,0.00042191,30]
[402039413,1768488711133,-1234.19,0.00042191,30]
[402039414,1768488711142,-500.0,0.00042191,30]
[402039415,1768488711152,-500.0,0.00042191,30]
[402039416,1768488711163,-503.73765533,0.00042191,30]
[402039417,1768488711172,-500.0,0.00042191,30]
[402039418,1768488711181,-505.56704621,0.00042191,30]
[402039419,1768488711190,-500.0,0.00042191,30]
[402039420,1768488711199,-701.45,0.00042191,30]
[402039421,1768488711208,-500.0,0.00042191,30]
[402039422,1768488711217,-579.16,0.00042191,30]
[402039423,1768488711226,-500.0,0.00042191,30]
[402039424,1768488711235,-500.0,0.00042191,30]
[402039425,1768488711245,-1435.95,0.00042191,30]
[402039426,1768488711254,-471.39603834,0.00042191,30]
[402039427,1768488711263,-1861.42,0.00042191,30]
[402039428,1768488711272,-500.0,0.00042191,30]
[402039429,1768488711281,-500.0,0.00042191,30]
[402039430,1768488711290,-500.0,0.00042191,30]
[402039431,1768488711299,-500.0,0.00042191,30]
[402039432,1768488711308,-500.0,0.00042191,30]
[402039433,1768488711317,-500.0,0.00042191,30]
[402039434,1768488711326,-954.0,0.00042191,30]
[402039435,1768488711335,-500.0,0.00042191,30]
[402039436,1768488711344,-500.0,0.00042191,30]
[402039437,1768488711353,-684.68,0.00042191,30]
[402039438,1768488711363,-593.4,0.00042191,30]
[402039439,1768488711373,-597.93,0.00042191,30]
[402039440,1768488711384,-500.0,0.00042191,30]
[402039441,1768488711393,-1179.76,0.00042191,2]
[402039442,1768488711403,-500.0,0.00042191,30]
[402039443,1768488711412,-500.0,0.00042191,30]
[402039444,1768488711421,-500.0,0.00042191,30]
[402039445,1768488711430,-1026.24,0.00042191,30]
[402039446,1768488711439,-500.0,0.00042191,30]
[402039447,1768488711448,-666.66,0.00042191,30]
[402039448,1768488711457,-500.0,0.00042191,30]
[402039449,1768488711467,-500.0,0.00042191,30]
[402039450,1768488711476,-500.0,0.00042191,30]
[402039451,1768488711485,-1092.31,0.00042191,30]
[402039452,1768488711495,-1127.45,0.00042191,30]
[402039453,1768488711504,-500.0,0.00042191,30]
[402039454,1768488711514,-500.0,0.00042191,30]
[402039455,1768488711523,-500.0,0.00042191,30]
[402039456,1768488711532,-500.0,0.00042191,30]
[402039457,1768488711542,-1135.42,0.00042191,30]
[402039458,1768488711551,-500.0,0.00042191,30]
[402039459,1768488711560,-500.0,0.00042191,30]
[402039460,1768488711569,-252.57802051,0.00042191,30]
[402039461,1768488711579,-757.15,0.00042191,30]
[402039462,1768488711588,-500.0,0.00042191,30]
[402039463,1768488711598,-914.77,0.00042191,30]
[402039464,1768488711608,-500.0,0.00042191,30]
[402039465,1768488711617,-500.0,0.00042191,30]
[402039466,1768488711630,-500.0,0.00042191,30]
[402039467,1768488711640,-2263.85,0.00042191,30]
[402039468,1768488711650,-1098.99,0.00042191,30]
[402039469,1768488711659,-500.0,0.00042191,30]
[402039470,1768488711669,-500.0,0.00042191,30]
[402039471,1768488711679,-500.0,0.00042191,30]
[402039472,1768488711688,-500.0,0.00042191,30]
[402039473,1768488711698,-1009.55,0.00042191,30]
[402039474,1768488711708,-2119.24,0.00042191,30]
[402039475,1768488711718,-1141.9,0.00042191,30]
[402039476,1768488711727,-1232.33,0.00042191,30]
[402039477,1768488711736,-185.44247198,0.00042191,30]
[402039478,1768488711745,-500.0,0.00042191,30]
[402039479,1768488711755,-500.0,0.00042191,30]
[402039480,1768488711764,-500.0,0.00042191,30]
[402039481,1768488711774,-1205.4,0.00042191,30]
[402039482,1768488711783,-592.99,0.00042191,30]
[402039483,1768488711792,-500.0,0.00042191,5]
[402039484,1768488711801,-1593.3,0.00042191,30]
[402039485,1768488711810,-1738.1,0.00042191,30]
[402039486,1768488711819,-500.0,0.00042191,30]
[402039487,1768488711829,-1723.61,0.00042191,30]
[402039488,1768488711838,-971.63,0.00042191,30]
[402039489,1768488711847,-596.06,0.00042191,30]
[402039490,1768488711857,-1560.59,0.00042191,30]
[402039491,1768488711866,-500.0,0.00042191,30]
[402039492,1768488711877,-664.77,0.00042191,30]
[402039493,1768488711887,-500.0,0.00042191,30]
[402039494,1768488711897,-587.71,0.00042191,30]
[402039495,1768488711906,-500.0,0.00042191,30]
[402039496,1768488711916,-500.0,0.00042191,30]
[402039497,1768488711925,-507.32,0.00042191,30]
[402039498,1768488711934,-500.0,0.00042191,30]
[402039499,1768488711943,-1466.95,0.00042191,30]
[402039500,1768488711953,-500.0,0.00042191,30]
[402039501,1768488711962,-680.18,0.00042191,30]
[402039502,1768488711972,-562.4045185,0.00042191,30]
[402039503,1768488711982,-500.0,0.00042191,30]
[402039504,1768488711991,-881.61,0.00042191,2]
[402039505,1768488712001,-521.31,0.00042191,30]
[402039506,1768488712010,-621.11,0.00042191,30]
[402039507,1768488712019,-500.0,0.00042191,30]
[402039508,1768488712029,-899.81,0.00042191,30]
[402039509,1768488712039,-702.55,0.00042191,30]
[402039510,1768488712048,-636.49130009,0.00042191,30]
[402039511,1768488712058,-550.58672166,0.00042191,30]
[402039512,1768488712067,-629.81,0.00042191,30]
[402039513,1768488712077,-500.0,0.00042191,30]
[402039514,1768488712086,-500.0,0.00042191,30]
[402039515,1768488712095,-1223.99,0.00042191,30]
[402039516,1768488712298,-1281.54,0.00042191,30]
[402039517,1768488712308,-544.40342302,0.00042191,30]
[402039518,1768488712319,-500.0,0.00042191,30]
[402039519,1768488712329,-1871.85,0.00042191,30]
[402039520,1768488712338,-1301.65,0.00042191,30]
[402039521,1768488712347,-577.33,0.00042191,30]
[402039522,1768488712357,-626.3,0.00042191,30]
[402039523,1768488712367,-964.16,0.00042191,30]
[402039524,1768488712376,-913.36,0.00042191,30]
[402039525,1768488712387,-477.44052861,0.00042191,30]
[402039526,1768488718204,300.0,0.000273,120]
[402039527,1768488718419,248.05759627,0.000273,120]
[402039551,1768489234180,-151.0,0.00016482,2]
[402039563,1768489491989,454.54,0.00026937,120]
[402039566,1768489528389,180.0,0.00030137,120]
[402039592,1768489831996,-157.68395652,0.00016856,2]
[402039593,1768489832010,-414.481,0.00016856,2]
[402039594,1768489832021,-500.0,0.00016973,2]
[402039595,1768489832033,-500.0,0.00016973,2]
[402039596,1768489832047,-830.18414408,0.00017083,2]
[402039597,1768489832057,-1200.0,0.00017099,2]
[402039598,1768489832068,-300.0,0.00017099,2]
[402039599,1768489832079,-1200.0,0.00017099,2]
[402039600,1768489832090,-153.39765396,0.000171,2]
[402039601,1768489832100,-38755.03474544,0.000171,2]
[402039602,1768489832133,-271.90586894,0.000171,2]
[402039603,1768489832163,-4285.95788562,0.000171,2]
[402039604,1768489832172,-157.68395652,0.00017198,2]
[402039605,1768489832184,-405.0,0.00017199,2]
[402039606,1768489832195,-157.68395652,0.000172,2]
[402039607,1768489832205,-510.98377513,0.00017299,2]
[402039608,1768489832216,-500.0,0.00017499,2]
[402039609,1768489832227,-1000.0,0.00017521,2]
[402039610,1768489832241,-500.0,0.00017521,2]
[402039611,1768489832263,-169.8,0.00017601,2]
[402039612,1768489832285,-233.81796729,0.00017973,2]
[402039614,1768489832296,-500.0,0.00017973,2]
[402039616,1768489832306,-500.0,0.00017973,2]
[402039618,1768489832316,-500.0,0.00017973,2]
[402039620,1768489832326,-500.0,0.00017973,2]
[402039622,1768489832338,-480.87901573,0.00017973,2]
[402039623,1768489832348,-500.0,0.00017973,2]
[402039625,1768489832358,-500.0,0.00017973,2]
[402039626,1768489832367,-500.0,0.00017973,2]
[402039628,1768489832377,-285.87913463,0.00017973,2]
[402039629,1768489832387,-500.0,0.00017973,2]
[402039630,1768489832397,-500.0,0.00017973,2]
[402039631,1768489832407,-150.0,0.00017973,2]
[402039632,1768489832416,-500.0,0.00017973,2]
[402039633,1768489832425,-14.59216396,0.00017999,2]
[402039634,1768489832445,-485.40783604,0.00017999,2]
[402039635,1768489832454,-166.23914818,0.00017999,2]
[402039636,1768489832464,-500.0,0.00018068,2]
[402039637,1768489832474,-235.83647893,0.00018521,2]
[402039638,1768489832484,-600.0,0.00018541,2]
[402039639,1768489832494,-300.0,0.00018541,2]
[402039640,1768489832504,-1251.0,0.0001863,2]
[402039641,1768489832514,-420.0,0.00018674,2]
[402039642,1768489832524,-1680.0,0.00018767,2]
[402039643,1768489832534,-200.18708233,0.00019082,2]
[402039644,1768489832545,-587.0,0.00020394,2]
[402039645,1768489832554,-169.8,0.00020506,2]
[402039646,1768489832564,-567.0,0.00020597,2]
[402039647,1768489832573,-153.39765395,0.0002206,2]
[402039648,1768489832583,-751.0,0.00022273,2]
[402039649,1768489832595,-348.09,0.00023368,2]
[402039650,1768489832604,-999.99,0.00023368,2]
[402039651,1768489832614,-299.99,0.00023368,7]
[402039652,1768489832624,-9999.99,0.00023368,2]
[402039653,1768489832634,-268.0,0.00024546,2]
[402039654,1768489832644,-1182.8,0.00024567,2]
[402039655,1768489832653,-268.0,0.0002461,2]
[402039656,1768489832663,-268.0,0.00024737,2]
[402039657,1768489832673,-15734.82309264,0.000248,2]
[402039658,1768489832686,-8171.53848446,0.000248,2]
[402039659,1768489832696,-268.0,0.00025038,7]
[402039660,1768489832705,-268.0,0.00025169,2]
[402039661,1768489832715,-209.65,0.00025169,2]
[402039662,1768489832725,-268.0,0.00025248,2]
[402039663,1768489832734,-268.0,0.00025335,2]
[402039664,1768489832744,-268.0,0.00025351,2]
[402039665,1768489832754,-4242.98065885,0.00025367,2]
[402039666,1768489832764,-304.11,0.00025392,2]
[402039667,1768489832774,-15201.19591663,0.00025462,2]
[402039668,1768489832783,-268.0,0.00025529,2]
[402039669,1768489832793,-268.0,0.00025587,2]
[402039670,1768489832803,-268.0,0.00025736,2]
[402039671,1768489832812,-268.0,0.00025766,2]
[402039672,1768489832822,-273.0,0.00025776,2]
[402039673,1768489832832,-273.0,0.00025946,7]
[402039674,1768489832843,-268.0,0.00025974,2]
[402039675,1768489832853,-268.0,0.0002622,2]
[402039676,1768489832863,-268.0,0.00026262,2]
[402039677,1768489832872,-268.0,0.00026316,2]
[402039678,1768489832882,-304.11,0.00026345,2]
[402039679,1768489832892,-268.0,0.00026374,2]
[402039680,1768489832902,-209.65,0.00026428,2]
[402039681,1768489832911,-273.0,0.0002645,2]
[402039682,1768489832921,-268.0,0.00026471,2]
[402039683,1768489832931,-2331.28,0.00026492,2]
[402039684,1768489832940,-268.0,0.00026526,2]
[402039685,1768489832950,-268.0,0.00026786,2]
[402039686,1768489832959,-268.0,0.00026929,2]
[402039687,1768489832973,-166.66,0.00026944,30]
[402039688,1768489832982,-153.39765395,0.0002702,2]
[402039689,1768489832992,-273.0,0.0002709,2]
[402039690,1768489833002,-506.0,0.00027137,2]
[402039691,1768489833013,-191.042,0.00027155,2]
[402039692,1768489833023,-212.092,0.00027155,2]
[402039693,1768489833033,-250.0,0.00027155,2]
[402039694,1768489833044,-169.0,0.00027155,2]
[402039695,1768489833054,-229.853,0.00027155,2]
[402039696,1768489833063,-566.0,0.00027181,2]
[402039697,1768489833074,-151.0,0.00027196,2]
[402039698,1768489833083,-304.11,0.00027297,2]
[402039699,1768489833095,-166.66,0.00027511,30]
[402039700,1768489833105,-209.65,0.00027686,2]
[402039701,1768489833114,-163.45,0.00027972,2]
[402039702,1768489833124,-166.66,0.00028078,30]
[402039703,1768489833134,-4242.98065885,0.00028122,2]
[402039704,1768489833245,-1852.42,0.00028152,2]
[402039705,1768489833255,-304.11,0.00028249,2]
[402039706,1768489833264,-156.09,0.00028362,30]
[402039707,1768489833273,-200.0,0.00028362,2]
[402039708,1768489833282,-166.66,0.00028646,30]
[402039709,1768489833291,-209.65,0.00028945,2]
[402039710,1768489833300,-304.11,0.00029201,2]
[402039711,1768489833309,-166.66,0.00029213,30]
[402039712,1768489833319,-151.0,0.00029432,2]
[402039713,1768489833328,-166.66,0.0002978,30]
[402039714,1768489833338,-150.0,0.00029849,2]
[402039715,1768489833347,-274.897284,0.00030137,15]
[402039716,1768489833357,-209.65,0.00030203,2]
[402039717,1768489833366,-163.45,0.00030303,2]
[402039718,1768489833375,-506.0,0.00030661,5]
[402039719,1768489833384,-1000.0,0.000307,2]
[402039720,1768489833393,-4242.98065885,0.00030878,2]
[402039721,1768489833403,-151.0,0.00031668,2]
[402039722,1768489833412,-153.39765395,0.0003198,2]
[402039723,1768489833421,-163.45,0.00032634,2]
[402039724,1768489833432,-2576.71021722,0.00033633,2]
[402039728,1768489838155,-642.535,0.00033633,2]
[402039729,1768489838167,-1023.73544163,0.00033633,2]
[402039730,1768489838177,-151.0,0.00033904,5]
[402039731,1768489838186,-1000.0,0.000344,2]
[402039732,1768489838195,-156.09,0.00034755,30]
[402039733,1768489838205,-163.45,0.00034965,2]
[402039734,1768489838215,-151.0,0.0003614,7]
[402039735,1768489838224,-4242.98065885,0.00036389,2]
[402039736,1768489838233,-18263.05576252,0.0003693,4]
[402039737,1768489838245,-37.1235414,0.0003693,4]
[402039738,1768489838253,-153.39765395,0.0003694,2]
[402039739,1768489838262,-163.45,0.00037296,2]
[402039740,1768489838272,-867.29626824,0.00038356,5]
[402039741,1768489838299,-480.875,0.00038356,5]
[402039746,1768489838431,-2615.92995068,0.00038356,5]
[402039804,1768489840254,-1421.62932466,0.00038356,5]
[402039805,1768489840380,-6381.26945642,0.00038356,5]
[402039806,1768489840390,-150.0,0.00038356,2]
[402039807,1768489840400,-500.0,0.00038356,30]
[402039808,1768489840410,-500.0,0.00038356,30]
[402039809,1768489840420,-1186.01,0.00038356,30]
[402039810,1768489840430,-500.0,0.00038356,30]
[402039811,1768489840439,-412.89064194,0.00038356,30]
[402039812,1768489840449,-500.0,0.00038356,30]
[402039813,1768489840458,-430.5830766,0.00038356,30]
[402039814,1768489840468,-500.0,0.00038356,30]
[402039815,1768489840478,-504.37978081,0.00038356,30]
[402039816,1768489840487,-286.98637941,0.00038356,30]
[402039817,1768489840500,-1384.46362059,0.00038356,30]
[402039818,1768489840511,-1364.8,0.00038356,30]
[402039819,1768489840521,-500.0,0.00038356,30]
[402039820,1768489840531,-593.97,0.00038356,30]
[402039821,1768489840541,-500.0,0.00038356,30]
[402039822,1768489840550,-850.93,0.00038356,30]
[402039823,1768489840560,-526.24,0.00038356,30]
[402039824,1768489840569,-500.0,0.00038356,30]
[402039825,1768489840578,-190.31842617,0.00038356,30]
[402039826,1768489840607,-313.40556428,0.00038356,30]
[402039827,1768489840616,-500.0,0.00038356,30]
[402039828,1768489840627,-518.96,0.00038356,30]
[402039829,1768489840636,-500.0,0.00038356,30]
[402039830,1768489840646,-410.12608157,0.00038356,30]
[402039831,1768489840658,-218.51678322,0.00038356,30]
[402039832,1768489840667,-261.27821678,0.00038356,30]
[402039846,1768489843357,-1344.59676338,0.00038298,5]
[402039847,1768489843366,-6008.59093942,0.00038298,5]
[402039848,1768489843375,-669.49178322,0.00038356,30]
[402039849,1768489843385,-1366.37,0.00038356,30]
[402039850,1768489843394,-500.0,0.00038356,30]
[402039851,1768489843403,-351.54830519,0.00038356,30]
[402039852,1768489843412,-500.0,0.00038356,30]
[402039853,1768489843421,-500.0,0.00038356,30]
[402039854,1768489843434,-500.0,0.00038356,30]
[402039855,1768489843443,-278.52576787,0.00038356,30]
[402039856,1768489843454,-1095.0,0.00038356,30]
[402039857,1768489843463,-500.0,0.00038356,30]
[402039858,1768489843473,-500.0,0.00038356,30]
[402039859,1768489843483,-1020.14,0.00038356,30]
[402039860,1768489843492,-500.0,0.00038356,30]
[402039862,1768489843502,-500.0,0.00038356,30]
[402039864,1768489843511,-500.0,0.00038356,30]
[402039866,1768489843521,-500.0,0.00038356,30]
[402039867,1768489843532,-1158.88,0.00038356,30]
[402039868,1768489843541,-2016.66,0.00038356,30]
[402039869,1768489843552,-712.44,0.00038356,30]
[402039870,1768489843562,-680.92,0.00038356,30]
[402039871,1768489843574,-300.0,0.00038356,2]